bitfinex-derivatives/quotes_SOLF0:USTF0_20250523
["timestamp","ask_amount","ask_price","bid_price","bid_amount"]
[1747967528008,0.03783137,184.41,184.35,0.04070962]
[1747967528409,5.46023137,184.41,184.35,5.46450962]
[1747967529116,5.4224,184.4,184.35,5.46450962]
[1747967529505,0.03783137,184.41,184.35,0.04070962]
[1747967530408,5.4232,184.38,184.35,0.04070962]
[1747967530607,0.03783137,184.41,184.35,0.04070962]
[1747967531309,5.4229,184.39,184.35,0.04070962]
[1747967532614,5.46023137,184.41,184.35,0.04070962]
[1747967532913,0.03783137,184.41,184.35,0.04070962]
[1747967533311,5.45993137,184.41,184.35,0.04070962]
[1747967533511,0.03783137,184.41,184.35,5.46430962]
[1747967533711,0.03783137,184.41,184.35,0.04070962]
[1747967534619,0.03783137,184.41,184.37,5.4232]
[1747967534813,0.03783137,184.41,184.35,0.04070962]
[1747967536716,5.4232,184.38,184.35,0.04070962]
[1747967537515,0.03783137,184.41,184.35,0.04070962]
[1747967541017,5.45993137,184.41,184.36,5.4233]
[1747967541318,5.45993137,184.41,184.35,9.62e-06]
[1747967541319,5.4235,184.36,184.35,9.62e-06]
[1747967541509,151.8,184.36,184.19,3.8044]
[1747967541709,4.82015156,184.35,184.19,3.8044]
[1747967541913,5.4256,184.29,184.24,5.4268]
[1747967542319,5.4258,184.29,184.23,5.4272]
[1747967542516,0.03509265,184.28,184.24,0.03758539]
[1747967543518,5.4242,184.34,184.24,0.03758539]
[1747967543817,151.8,184.36,184.2,151.82]
[1747967544014,151.8,184.36,184.22,1.8438]
[1747967544219,151.82,184.38,184.25,7.7101075]
[1747967544419,151.82,184.39,184.26,151.82]
[1747967544621,0.0407223,184.34,184.31,0.03577319]
[1747967544913,151.82,184.43,184.32,151.82]
[1747967545121,10.44319428,184.46,184.32,151.82]
[1747967545320,5.02239428,184.46,184.32,151.82]
[1747967546119,0.0415948,184.41,184.37,0.03871672]
[1747967546322,0.0415948,184.41,184.4,5.4224]
[1747967546520,10.44309428,184.46,184.38,1.988]
[1747967546819,620.26,184.47,184.38,1.988]
[1747967547022,5.421,184.45,184.4,5.4223]
[1747967547221,620.26,184.47,184.38,1.988]
[1747967547417,620.26,184.47,184.41,0.03627142]
[1747967547627,0.04069587,184.44,184.41,0.03627142]
[1747967549615,5.4218,184.42,184.41,0.03627142]
[1747967551024,5.4216,184.43,184.41,0.03627142]
[1747967551321,0.04069587,184.44,184.41,0.03627142]
[1747967552122,5.4218,184.42,184.41,0.03627142]
[1747967554226,0.04069587,184.44,184.22,5.45781252]
[1747967554527,151.14,184.43,184.28,3.8804]
[1747967554724,151.14,184.43,184.34,5.424]
[1747967554934,5.4229,184.39,184.34,5.424]
[1747967555229,0.04138303,184.38,184.35,0.03913052]
[1747967555524,5.4235,184.37,184.35,0.03913052]
[1747967555829,151.14,184.37,184.35,0.03913052]
[1747967556122,5.4236,184.36,184.35,0.03913052]
[1747967556326,151.14,184.37,184.35,0.03913052]
[1747967556629,156.5635,184.37,184.35,0.03913052]
[1747967556826,151.14,184.37,184.35,0.03913052]
[1747967558028,5.4236,184.36,184.35,0.03913052]
[1747967558229,0.04138303,184.38,184.35,0.03913052]
[1747967559529,0.04138303,184.38,184.37,5.4233]
[1747967560136,0.04138303,184.38,184.36,5.4235]
[1747967560331,0.04138303,184.38,184.35,0.03913052]
[1747967561427,0.04138303,184.38,184.37,5.4233]
[1747967561930,0.04138303,184.38,184.35,0.03913052]
[1747967562531,0.04138303,184.38,184.36,5.4236]
[1747967562833,0.04138303,184.38,184.35,0.03913052]
[1747967563031,0.04138303,184.38,184.37,5.4233]
[1747967563235,5.02239428,184.44,184.35,0.03913052]
[1747967564433,0.03855795,184.41,184.35,0.03913052]
[1747967564634,0.03855795,184.41,184.4,5.4223]
[1747967564838,5.02239428,184.44,184.36,3.8145]
[1747967565432,5.02239428,184.44,184.43,5.4215]
[1747967565730,0.04126842,184.45,184.36,3.8145]
[1747967566138,0.04126842,184.45,184.39,0.03592059]
[1747967566435,0.04126842,184.45,184.44,5.4212]
[1747967570835,151.14,184.5,184.49,5.4197]
[1747967571038,6.73128058,184.53,184.41,151.12]
[1747967571343,151.12,184.54,184.53,5.4186]
[1747967571536,151.12,184.54,184.41,161.9642]
[1747967571731,0.03458588,184.49,184.41,161.9642]
[1747967572038,0.03458588,184.49,184.48,5.42]
[1747967572540,0.03458588,184.49,184.46,5.45619181]
[1747967572930,0.03458588,184.49,184.46,0.03579181]
[1747967573341,151.08,184.48,184.46,0.03579181]
[1747967573535,156.5001,184.48,184.46,0.03579181]
[1747967573732,151.08,184.48,184.46,0.03579181]
[1747967575934,5.4203,184.47,184.46,0.03579181]
[1747967579043,156.5001,184.48,184.46,0.03579181]
[1747967580243,151.08,184.48,184.46,0.03579181]
[1747967580845,0.03458588,184.49,184.46,0.03579181]
[1747967581943,5.4203,184.48,184.46,0.03579181]
[1747967582132,0.03458588,184.49,184.46,0.03579181]
[1747967582637,0.03458588,184.49,184.47,5.4201]
[1747967582834,0.03458588,184.49,184.46,0.03579181]
[1747967583343,0.03458588,184.49,184.48,5.4201]
[1747967583538,150.46,184.52,184.47,1.8167]
[1747967583841,5.4182,184.55,184.5,5.4192]
[1747967584046,150.46,184.56,184.48,1.9231]
[1747967584444,150.46,184.56,184.5,0.03772222]
[1747967584748,0.03922367,184.54,184.5,0.03772222]
[1747967584950,5.45762367,184.54,184.5,5.45702222]
[1747967585256,0.03922367,184.54,184.5,5.45702222]
[1747967585548,5.4188,184.53,184.5,0.03772222]
[1747967585749,0.03922367,184.54,184.5,0.03772222]
[1747967586452,468.68,184.58,184.5,0.03772222]
[1747967586756,150.44,184.6,184.5,0.03772222]
[1747967587445,0.0397985,184.57,184.5,0.03772222]
[1747967588344,0.0397985,184.57,184.53,5.4185]
[1747967588546,0.0397985,184.57,184.5,0.03772222]
[1747967589151,0.0397985,184.57,184.54,5.4181]
[1747967589352,0.0397985,184.57,184.5,0.03772222]
[1747967590451,0.0397985,184.57,184.56,5.4177]
[1747967593153,468.44,184.68,184.55,0.03435022]
[1747967593347,150.4,184.67,184.61,5.416]
[1747967593552,7.69105031,184.63,184.47,1.8167]
[1747967593857,7.69105031,184.63,184.5,5.4194]
[1747967593858,4.0146,184.62,184.5,5.4194]
[1747967594155,5.4182,184.55,184.47,1.8167]
[1747967594456,0.04057959,184.53,184.49,0.04159087]
[1747967594657,0.04165443,184.53,184.49,0.03541938]
[1747967595561,5.46035443,184.53,184.49,5.45491938]
[1747967595854,0.04165443,184.53,184.49,0.03541938]
[1747967596056,0.04165443,184.53,184.52,5.4189]
[1747967598655,5.4158,184.63,184.49,0.03541938]
[1747967598848,150.4,184.62,184.49,150.4]
[1747967599051,150.4,184.63,184.49,150.4]
[1747967599355,150.4,184.63,184.5,10.8389]
[1747967599856,0.03996637,184.58,184.55,0.04074106]
[1747967600362,0.03996637,184.58,184.57,5.4174]
[1747967600548,150.4,184.63,184.56,1.8383]
[1747967600956,150.4,184.63,184.61,5.416]
[1747967601148,150.4,184.63,184.56,1.8383]
[1747967601549,150.4,184.63,184.61,5.4162]
[1747967601755,0.04076094,184.62,184.61,5.4162]
[1747967602052,0.03838291,184.63,184.62,5.416]
[1747967603058,8.291e-05,184.63,184.62,5.416]
[1747967603361,150.38,184.67,184.66,5.4148]
[1747967604251,6.73128058,184.8,184.65,0.03534132]
[1747967604453,150.36,184.79,184.71,0.03574308]
[1747967606851,5.4126,184.74,184.71,0.03574308]
[1747967607159,150.34,184.77,184.71,0.03574308]
[1747967607359,468.22,184.83,184.72,0.04150023]
[1747967607559,150.34,184.81,184.72,0.04150023]
[1747967609258,150.34,184.81,184.78,5.411]
[1747967609462,150.34,184.81,184.78,5.44963798]
[1747967609758,5.411,184.79,184.78,0.03863798]
[1747967609965,150.34,184.81,184.78,0.03863798]
[1747967610265,468.22,184.83,184.78,0.03863798]
[1747967610468,617.84,184.83,184.78,0.03863798]
[1747967611170,617.84,184.83,184.81,5.4101]
[1747967612869,149.62,184.83,184.82,5.4101]
[1747967613166,149.58,184.87,184.84,5.4094]
[1747967613366,149.58,184.87,184.84,5.44569687]
[1747967613560,154.9889,184.87,184.84,0.03629687]
[1747967614168,5.4092,184.86,184.84,0.03629687]
[1747967614366,149.62161178,184.87,184.66,10.8294]
[1747967614668,5.4107,184.81,184.67,256.332]
[1747967614872,5.4107,184.81,184.77,5.4115]
[1747967615063,149.58,184.87,184.77,5.4115]
[1747967615263,5.4104,184.82,184.77,5.4115]
[1747967615472,0.04157561,184.81,184.78,0.03547004]
[1747967615964,149.56,184.8,184.78,0.03547004]
[1747967616474,5.411,184.79,184.78,0.03547004]
[1747967618269,5.4122,184.76,184.67,108.705]
[1747967618465,149.56,184.8,184.67,108.705]
[1747967618967,5.4124,184.75,184.67,5.845]
[1747967619271,0.03611695,184.73,184.69,0.04052594]
[1747967619563,149.58085433,184.73,184.69,0.03423616]
[1747967619960,5.4137,184.7,184.69,0.03423616]
[1747967620470,149.58085433,184.73,184.69,0.03423616]
[1747967621573,5.4137,184.7,184.69,0.03423616]
[1747967622869,5.4151,184.66,184.61,7.3068]
[1747967623069,149.56,184.66,184.57,3.9033]
[1747967623973,0.03491733,184.63,184.6,0.04062155]
[1747967624574,0.03491733,184.63,184.61,5.4161]
[1747967624772,0.03491733,184.63,184.6,0.04062155]
[1747967627677,0.03491733,184.63,184.61,5.4162]
[1747967628077,0.03491733,184.63,184.62,5.4161]
[1747967630680,0.03491733,184.63,184.6,5.45702155]
[1747967631387,0.03491733,184.63,184.6,0.04062155]
[1747967632084,0.03491733,184.63,184.61,5.4163]
[1747967632282,0.03491733,184.63,184.6,0.04062155]
[1747967633184,0.03491733,184.63,184.62,5.4161]
[1747967633571,149.62,184.66,184.6,0.04062155]
[1747967633785,149.62,184.66,184.65,5.4152]
[1747967635792,149.62,184.66,184.6,0.04062155]
[1747967637092,5.4154,184.65,184.61,5.4163]
[1747967637297,5.4154,184.65,184.6,0.04062155]
[1747967640000,155.035,184.66,184.62,5.4159]
[1747967640196,155.035,184.66,184.6,0.04062155]
[1747967640902,155.035,184.66,184.62,5.4159]
[1747967641399,5.4152,184.65,184.61,5.4163]
[1747967641609,5.4152,184.65,184.6,0.04062155]
[1747967641610,149.62,184.66,184.6,0.04062155]
[1747967641900,5.416,184.63,184.6,0.04062155]
[1747967642302,149.62,184.66,184.6,0.04062155]
[1747967642500,5.4164,184.61,184.6,0.04062155]
[1747967643903,5.42,184.61,184.47,4.13508698]
[1747967644105,148.88,184.6,184.47,4.13508698]
[1747967644293,148.88,184.6,184.53,5.4185]
[1747967644499,5.4178,184.57,184.53,5.4185]
[1747967644803,5.4178,184.57,184.53,5.45267686]
[1747967644995,5.4178,184.56,184.53,5.45267686]
[1747967645301,0.03809507,184.57,184.53,5.45267686]
[1747967645507,5.45569507,184.57,184.54,5.4184]
[1747967645803,0.03809507,184.57,184.53,0.03417686]
[1747967648515,148.92,184.63,184.53,0.03417686]
[1747967649412,0.03691431,184.6,184.53,0.03417686]
[1747967652917,148.9,184.67,184.55,7.69105031]
[1747967653214,148.9,184.67,184.56,253.832]
[1747967653418,148.9,184.78,184.6,7.69105031]
[1747967653616,4.9885187,184.79,184.64,7.69105031]
[1747967653817,4.9885187,184.79,184.68,7.69105031]
[1747967654005,0.03463237,184.73,184.7,0.04077232]
[1747967654512,4.9885187,184.79,184.7,0.04077232]
[1747967656417,148.9,184.8,184.7,1.88977232]
[1747967656716,148.9,184.8,184.7,0.04077232]
[1747967666727,1.8687,184.82,184.7,0.04077232]
[1747967666924,0.2562,184.86,184.74,0.03916957]
[1747967667230,148.8,184.85,184.78,0.03957621]
[1747967669032,4.9885187,184.91,184.78,0.03957621]
[1747967669234,4.9885187,184.91,184.83,0.03641637]
[1747967669728,4.9885187,184.91,184.9,5.4079]
[1747967671835,158.87581254,184.96,184.93,5.407]
[1747967671836,148.8,184.96,184.93,5.407]
[1747967672022,148.8,184.96,184.89,0.03635412]
[1747967672225,7.66509991,184.94,184.79,5.8102]
[1747967672532,5.4079,184.9,184.79,5.8102]
[1747967672836,7.66509991,184.86,184.73,4.13508698]
[1747967673031,1.9742,184.85,184.73,4.13508698]
[1747967673331,0.03806791,184.81,184.77,0.03643053]
[1747967673632,147.88,184.8,184.77,0.03643053]
[1747967674127,153.2908,184.8,184.77,0.03643053]
[1747967675538,147.88,184.8,184.77,0.03643053]
[1747967676137,5.4114,184.79,184.77,0.03643053]
[1747967676937,147.88,184.8,184.77,0.03643053]
[1747967677435,153.2908,184.8,184.77,0.03643053]
[1747967678035,5.4111,184.79,184.77,0.03643053]
[1747967678338,147.88,184.8,184.77,0.03643053]
[1747967678534,149.7182,184.8,184.77,0.03643053]
[1747967678733,5.4114,184.78,184.77,0.03643053]
[1747967680238,5.4111,184.79,184.77,0.03643053]
[1747967681046,149.7182,184.8,184.77,0.03643053]
[1747967682048,147.88,184.8,184.77,0.03643053]
[1747967682832,147.88,184.8,184.78,5.4113]
[1747967683038,147.88,184.8,184.77,0.03643053]
[1747967683243,0.03806791,184.81,184.77,0.03643053]
[1747967683840,147.9,184.8,184.77,0.03643053]
[1747967684034,0.03806791,184.81,184.78,5.4114]
[1747967684237,147.9,184.8,184.78,5.4114]
[1747967684935,147.9,184.8,184.77,0.03643053]
[1747967684936,147.9,184.8,184.79,5.4111]
[1747967685943,0.03806791,184.81,184.8,5.4108]
[1747967686239,147.9,184.85,184.78,3.9385]
[1747967686435,147.9,184.88,184.87,5.4086]
[1747967686638,147.9,184.88,184.79,1.8146]
[1747967687236,147.9,184.88,184.82,0.03686225]
[1747967688642,147.9,184.88,184.84,5.4096]
[1747967688946,147.9,184.88,184.82,0.03686225]
[1747967689144,5.4088,184.87,184.83,5.4097]
[1747967689341,147.9,184.88,184.82,0.03686225]
[1747967689747,5.4088,184.87,184.83,5.4099]
[1747967689945,147.9,184.88,184.83,5.4099]
[1747967690448,5.4091,184.86,184.82,5.44706225]
[1747967690647,147.9,184.88,184.82,5.44706225]
[1747967690944,147.9,184.88,184.82,0.03686225]
[1747967691346,1.9294,184.87,184.82,0.03686225]
[1747967691850,1.9294,184.87,184.72,3.7668]
[1747967692045,0.2915,184.86,184.72,3.7668]
[1747967692246,5.4104,184.82,184.72,3.7668]
[1747967692446,147.88,184.81,184.72,3.7668]
[1747967692745,0.04076811,184.78,184.77,5.4117]
[1747967700455,147.88,184.8,184.79,5.4111]
[1747967700744,147.02,184.85,184.75,0.03751446]
[1747967700949,147.02,184.85,184.72,3.7668]
[1747967701251,147.02,184.85,184.75,10.8245]
[1747967701452,147.02,184.85,184.78,0.03506311]
[1747967701849,147.02,184.85,184.84,5.4096]
[1747967702049,4.9885187,184.87,184.83,0.04079998]
[1747967702350,4.9885187,184.87,184.83,0.04131675]
[1747967702551,4.9885187,184.87,184.86,5.409]
[1747967703449,147.02,184.89,184.88,5.4085]
[1747967707349,147.02,184.89,184.87,5.4087]
[1747967707653,147.02,184.89,184.83,0.04131675]
[1747967707853,7.2519187,184.97,184.83,0.04131675]
[1747967707854,4.9885187,184.97,184.84,146.98]
[1747967708161,4.9885187,184.97,184.89,0.03527418]
[1747967708348,4.9885187,184.97,184.96,5.4061]
[1747967710158,5.4044,185.02,184.98,5.4055]
[1747967710349,5.4044,185.02,184.98,5.44012173]
[1747967710550,146.98,185.07,184.98,0.03462173]
[1747967711056,146.98,185.07,184.98,5.43992173]
[1747967711458,146.98,185.07,184.98,0.03462173]
[1747967711656,5.4044,185.02,184.98,5.44012173]
[1747967712364,146.98,185.07,184.98,0.03462173]
[1747967712861,5.4043,185.03,184.98,5.43992173]
[1747967713159,146.98,185.07,184.98,5.43992173]
[1747967713464,5.4046,185.02,184.98,5.43992173]
[1747967713661,146.98,185.07,184.98,0.03462173]
[1747967714162,146.98,185.07,184.98,5.44012173]
[1747967714470,5.4044,185.02,184.98,5.44012173]
[1747967715169,146.94,185.01,184.98,0.03462173]
[1747967715667,5.4052,185.0,184.98,0.03462173]
[1747967716067,146.94,185.01,184.98,0.03462173]
[1747967716376,5.4052,184.99,184.98,0.03462173]
[1747967716871,146.94,185.01,184.9,1.9481]
[1747967717071,1.9287,185.0,184.9,1.9481]
[1747967717476,5.4058,184.97,184.92,5.407]
[1747967717767,0.04105364,184.96,184.93,0.03598007]
[1747967718070,0.04105364,184.96,184.93,5.44288007]
[1747967718367,0.04105364,184.96,184.93,0.03598007]
[1747967718873,0.04105364,184.96,184.95,5.4064]
[1747967721470,0.04105364,184.96,184.93,0.03598007]
[1747967721969,5.44725364,184.96,184.93,0.03598007]
[1747967722276,146.92,184.95,184.93,0.03598007]
[1747967722571,5.4067,184.94,184.93,0.03598007]
[1747967723075,152.3265,184.95,184.93,0.03598007]
[1747967723668,5.4067,184.94,184.93,0.03598007]
[1747967724277,146.92,184.95,184.85,1.8882]
[1747967724468,148.7816,184.95,184.85,1.8882]
[1747967724668,5.4078,184.91,184.86,5.4088]
[1747967725066,148.7816,184.95,184.81,2.0069]
[1747967725267,0.04111078,184.9,184.87,5.4085]
[1747967725468,0.04111078,184.9,184.86,0.03528949]
[1747967725768,146.92,184.89,184.86,0.03528949]
[1747967726276,146.92,184.89,184.87,5.4086]
[1747967726473,146.92,184.89,184.86,0.03528949]
[1747967726879,146.92,184.89,184.88,5.4085]
[1747967727076,146.92,184.89,184.86,0.03528949]
[1747967727374,146.92,184.89,184.87,5.4085]
[1747967727674,146.92,184.89,184.86,0.03528949]
[1747967727871,0.04111078,184.9,184.86,0.03528949]
[1747967728078,0.04111078,184.9,184.89,5.4082]
[1747967729972,0.04111078,184.9,184.88,5.4084]
[1747967730275,0.04111078,184.9,184.86,0.03528949]
[1747967730680,0.04111078,184.9,184.87,5.4086]
[1747967730872,0.04111078,184.9,184.86,0.03528949]
[1747967732074,0.04111078,184.9,184.88,5.4083]
[1747967733582,0.04111078,184.9,184.89,5.4082]
[1747967744691,146.1,184.97,184.89,10.18720936]
[1747967744884,146.1,184.97,184.89,4.78720936]
[1747967745190,146.1,184.97,184.88,107.54720936]
[1747967745591,146.1,184.97,184.95,5.4062]
[1747967746183,146.1,184.97,184.96,5.4061]
[1747967746585,146.1,184.97,184.91,0.04103039]
[1747967746792,5.4066,184.95,184.92,5.4072]
[1747967747792,5.4062,184.96,184.92,5.4072]
[1747967748191,5.4062,184.96,184.91,0.04103039]
[1747967748192,5.4064,184.95,184.91,5.44853039]
[1747967748393,146.1,184.97,184.91,0.04103039]
[1747967748694,0.03970122,184.98,184.97,5.4058]
[1747967753592,0.03970122,184.98,184.96,5.44651712]
[1747967753796,0.03970122,184.98,184.96,0.04041712]
[1747967754197,0.03970122,184.98,184.96,5.44651712]
[1747967754498,0.03970122,184.98,184.96,0.04041712]
[1747967754689,0.03970122,184.98,184.91,5.4075]
[1747967754885,5.4062,184.96,184.89,1.875]
[1747967755089,146.06,184.95,184.89,1.875]
[1747967755798,0.03816433,184.94,184.91,5.4074]
[1747967756296,0.03816433,184.94,184.9,5.44280588]
[1747967756598,0.03816433,184.94,184.9,0.03500588]
[1747967757099,0.03816433,184.94,184.91,5.4075]
[1747967758399,5.44486433,184.94,184.9,0.03500588]
[1747967758601,0.03816433,184.94,184.9,0.03500588]
[1747967759100,5.4072,184.93,184.9,0.03500588]
[1747967759801,0.03816433,184.94,184.9,0.03500588]
[1747967760899,0.03816433,184.94,184.91,5.4075]
[1747967761101,0.03816433,184.94,184.9,0.03500588]
[1747967761995,0.03816433,184.94,184.92,5.4071]
[1747967762492,0.03816433,184.94,184.93,5.407]
[1747967763502,4.9885187,184.99,184.91,4.78720936]
[1747967763697,4.9885187,184.99,184.92,102.76]
[1747967763895,4.9885187,184.99,184.92,107.54720936]
[1747967764095,4.9885187,184.99,184.98,5.4055]
[1747967764796,4.9885187,184.99,184.97,0.03851717]
[1747967765798,0.03671513,185.0,184.97,0.03851717]
[1747967766205,0.03671513,185.0,184.98,5.4053]
[1747967766605,0.03671513,185.0,184.97,0.03851717]
[1747967767908,0.03671513,185.0,184.98,5.4053]
[1747967768205,0.03671513,185.0,184.99,5.4053]
[1747967768505,0.03671513,185.0,184.97,0.03851717]
[1747967768704,0.03671513,185.0,184.98,5.4055]
[1747967768907,0.03671513,185.0,184.97,0.03851717]
[1747967769408,0.03671513,185.0,184.98,5.4054]
[1747967769705,0.03671513,185.0,184.97,0.03851717]
[1747967770207,0.03671513,185.0,184.98,5.4055]
[1747967770507,0.03671513,185.0,184.97,0.03851717]
[1747967770804,0.03671513,185.0,184.98,5.4055]
[1747967771002,0.03671513,185.0,184.97,0.03851717]
[1747967771207,5.4055,184.98,184.97,0.03851717]
[1747967771508,145.14,184.99,184.97,0.03851717]
[1747967772901,0.03671513,185.0,184.97,0.03851717]
[1747967773509,0.03671513,185.0,184.97,5.44411717]
[1747967773911,0.03671513,185.0,184.97,0.03851717]
[1747967774113,0.03671513,185.0,184.98,5.4053]
[1747967774413,0.03671513,185.0,184.97,0.03851717]
[1747967774605,0.03671513,185.0,184.98,5.4055]
[1747967774805,0.03671513,185.0,184.97,0.03851717]
[1747967775415,0.03671513,185.0,184.98,5.4055]
[1747967775710,0.03671513,185.0,184.97,0.03851717]
[1747967776713,0.03671513,185.0,184.98,5.4054]
[1747967776900,0.03671513,185.0,184.97,0.03851717]
[1747967777309,0.03671513,185.0,184.99,5.4052]
[1747967780017,0.03671513,185.0,184.97,0.03851717]
[1747967781110,0.03671513,185.0,184.97,5.44411717]
[1747967781412,0.03671513,185.0,184.97,0.03851717]
[1747967781615,0.03671513,185.0,184.97,5.44431717]
[1747967781814,0.03671513,185.0,184.97,0.03851717]
[1747967782007,5.4053,184.99,184.97,0.03851717]
[1747967782618,5.4055,184.98,184.97,0.03851717]
[1747967782812,0.03671513,185.0,184.97,0.03851717]
[1747967783016,145.12,184.98,184.97,0.03851717]
[1747967784518,150.5255,184.98,184.97,0.03851717]
[1747967784723,145.12,184.98,184.97,0.03851717]
[1747967785621,0.03671513,185.0,184.98,5.4053]
[1747967785823,0.03671513,185.0,184.97,0.03851717]
[1747967786222,0.03671513,185.0,184.99,5.4053]
[1747967791133,0.03671513,185.0,184.98,5.4055]
[1747967791324,0.03671513,185.0,184.97,0.03851717]
[1747967792530,0.03671513,185.0,184.98,5.4053]
[1747967792731,0.03671513,185.0,184.97,0.03851717]
[1747967793831,5.4055,184.98,184.97,0.03851717]
[1747967794530,5.4,184.98,184.82,148.94720936]
[1747967794727,144.16,185.0,184.85,3.8441]
[1747967794925,5.4076,184.91,184.85,3.8441]
[1747967795331,5.4076,184.91,184.89,0.03778559]
[1747967796732,0.04049081,184.92,184.89,0.03778559]
[1747967796733,5.4079,184.9,184.89,0.03778559]
[1747967798639,5.4076,184.91,184.89,0.03778559]
[1747967799236,0.04049081,184.92,184.89,0.03778559]
[1747967799435,149.1685187,184.97,184.89,0.03778559]
[1747967799841,149.1685187,184.97,184.9,5.4076]
[1747967800038,149.1685187,184.97,184.89,0.03778559]
[1747967800039,144.18,184.97,184.89,0.03778559]
[1747967800245,5.4066,184.95,184.91,5.4074]
[1747967800541,0.04097308,184.95,184.89,0.03778559]
[1747967802140,0.04097308,184.95,184.94,5.4067]
[1747967802527,0.04097308,184.95,184.89,0.03778559]
[1747967803229,5.44747308,184.95,184.92,5.4072]
[1747967803443,0.04097308,184.95,184.89,0.03778559]
[1747967803738,5.44747308,184.95,184.89,0.03778559]
[1747967803939,0.04097308,184.95,184.89,0.03778559]
[1747967804247,0.04097308,184.95,184.92,5.4071]
[1747967804835,0.04097308,184.95,184.9,2.0044]
[1747967805144,0.04097308,184.95,184.89,0.03778559]
[1747967807045,5.4073,184.92,184.89,0.03778559]
[1747967807637,5.4077,184.91,184.89,0.03778559]
[1747967808046,149.6077,184.91,184.89,0.03778559]
[1747967808546,144.2,184.91,184.89,0.03778559]
[1747967810348,0.04097308,184.95,184.89,0.03778559]
[1747967810643,144.24097308,184.95,184.89,0.03778559]
[1747967812755,5.4078,184.91,184.89,0.03778559]
[1747967813254,144.24097308,184.95,184.89,0.03778559]
[1747967814652,5.4068,184.94,184.89,5.44588559]
[1747967815048,144.24097308,184.95,184.89,5.44588559]
[1747967815347,144.24097308,184.95,184.9,5.4078]
[1747967815551,144.24097308,184.95,184.89,0.03778559]
[1747967815752,5.4068,184.94,184.9,5.4078]
[1747967816047,5.4068,184.94,184.89,0.03778559]
[1747967816353,5.4068,184.94,184.89,5.44568559]
[1747967816655,5.4071,184.93,184.89,5.44568559]
[1747967816854,5.4071,184.93,184.89,0.03778559]
[1747967817054,144.24097308,184.95,184.9,5.4079]
[1747967817852,5.4068,184.94,184.9,5.4079]
[1747967818157,5.4068,184.94,184.91,5.4075]
[1747967818355,5.4071,184.93,184.89,0.03778559]
[1747967818547,144.24097308,184.95,184.89,0.03778559]
[1747967818753,144.24097308,184.95,184.91,5.4074]
[1747967819052,144.24097308,184.95,184.89,0.03778559]
[1747967820752,5.4068,184.94,184.9,5.4077]
[1747967821252,144.24097308,184.95,184.89,0.03778559]
[1747967821863,144.24097308,184.95,184.91,5.4074]
[1747967822152,144.24097308,184.95,184.89,0.03778559]
[1747967822948,0.04097308,184.95,184.94,5.4067]
[1747967823257,0.04097308,184.95,184.9,5.6939]
[1747967823447,5.44747308,184.95,184.9,3.8516]
[1747967823646,0.04097308,184.95,184.91,5.4073]
[1747967823844,0.04097308,184.95,184.9,3.8516]
[1747967824050,0.04097308,184.95,184.92,5.4071]
[1747967824543,0.04097308,184.95,184.91,5.4076]
[1747967824761,0.04097308,184.95,184.9,1.9678]
[1747967824957,143.4,184.94,184.9,1.9678]
[1747967825260,143.4,184.94,184.9,7.3757]
[1747967825461,143.4,184.94,184.9,1.9678]
[1747967825652,143.4,184.94,184.91,5.4073]
[1747967825860,143.4,184.94,184.9,1.9678]
[1747967826164,143.4,184.94,184.92,5.4072]
[1747967826360,0.04097308,184.95,184.9,1.9678]
[1747967826566,0.04097308,184.95,184.9,6.75500936]
[1747967826760,0.04097308,184.95,184.94,5.4067]
[1747967826959,0.04097308,184.95,184.9,6.75500936]
[1747967827862,0.04097308,184.95,184.9,1.9678]
[1747967828663,0.04097308,184.95,184.94,5.4067]
[1747967834877,0.04097308,184.95,184.9,1.9678]
[1747967835375,0.04097308,184.95,184.94,5.4067]
[1747967835786,6.73128058,185.07,184.94,10.18720936]
[1747967836086,6.73128058,185.07,185.0,5.4047]
[1747967836583,5.404,185.04,185.0,5.4047]
[1747967836780,6.73128058,185.07,184.9,1.9678]
[1747967836781,148.14720936,185.06,184.9,1.9678]
[1747967836981,5.4055,184.99,184.9,1.9678]